[Event "Titled Tuesday Blitz October 11 Early 2022"]
[White "Wieczorek, Oskar"]
[Black "Horak, Martin"]
[WhiteFideId "1133950"]
[BlackFideId "367095"]
[WhiteElo "2404"]
[BlackElo "2091"]
[Result "0-1"]
[Round "02"]
[TimeControl "180+1"]
[Date "2022.10.12"]
[WhiteClock "0:01:32"]
[BlackClock "0:00:54"]

1. e4 {[%clk 0:03:00]}  e5 {[%clk 0:02:57]} 2. Nf3 {[%clk 0:02:50]}  Nc6 {[%clk 0:02:54]} 3. Nc3 {[%clk 0:02:50]}  Nf6 {[%clk 0:02:53]} 4. h3 {[%clk 0:02:44]}  d5 {[%clk 0:02:49]} 5. exd5 {[%clk 0:02:44]}  Nxd5 {[%clk 0:02:50]} 6. Bb5 {[%clk 0:02:44]}  Nxc3 {[%clk 0:02:44]} 7. bxc3 {[%clk 0:02:45]}  Bd6 {[%clk 0:02:41]} 8. O-O {[%clk 0:02:45]}  O-O {[%clk 0:02:41]} 9. d4 {[%clk 0:02:45]}  exd4 {[%clk 0:02:37]} 10. cxd4 {[%clk 0:02:45]}  h6 {[%clk 0:02:31]} 11. c4 {[%clk 0:02:45]}  Qf6 {[%clk 0:02:28]} 12. Bb2 {[%clk 0:02:45]}  Qg6 {[%clk 0:01:41]} 13. Bxc6 {[%clk 0:02:31]}  bxc6 {[%clk 0:01:39]} 14. c5 {[%clk 0:02:31]}  Bf4 {[%clk 0:01:24]} 15. Qb3 {[%clk 0:01:46]}  Be6 {[%clk 0:01:14]} 16. Qc3 {[%clk 0:01:43]}  Bd5 {[%clk 0:01:13]} 17. Rfe1 {[%clk 0:01:43]}  Rfe8 {[%clk 0:01:11]} 18. Rxe8+ {[%clk 0:01:33]}  Rxe8 {[%clk 0:01:12]} 19. Re1 {[%clk 0:01:33]}  Rxe1+ {[%clk 0:01:06]} 20. Nxe1 {[%clk 0:01:34]}  Qb1 {[%clk 0:01:00]} 21. a3 {[%clk 0:01:32]}  Qd1 {[%clk 0:00:54]} 0-1


[Site "https://www.chess.com"]

[Event "Titled Tuesday Blitz October 11 Early 2022"]
[White "Winkels, Marcel"]
[Black "Orzech, Dominik"]
[WhiteFideId "1003887"]
[BlackFideId "1115065"]
[WhiteElo "1900"]
[BlackElo "2272"]
[Result "0-1"]
[Round "02"]
[TimeControl "180+1"]
[Date "2022.10.12"]
[WhiteClock "0:00:01"]
[BlackClock "0:00:08"]

1. e4 {[%clk 0:03:00]}  c6 {[%clk 0:02:49]} 2. d4 {[%clk 0:02:58]}  d5 {[%clk 0:02:48]} 3. exd5 {[%clk 0:02:58]}  cxd5 {[%clk 0:02:48]} 4. c4 {[%clk 0:02:59]}  Nf6 {[%clk 0:02:47]} 5. Nc3 {[%clk 0:02:59]}  g6 {[%clk 0:02:44]} 6. cxd5 {[%clk 0:02:58]}  Nxd5 {[%clk 0:02:42]} 7. Bc4 {[%clk 0:02:57]}  Nb6 {[%clk 0:02:42]} 8. Bb3 {[%clk 0:02:56]}  Bg7 {[%clk 0:02:42]} 9. Nf3 {[%clk 0:02:55]}  O-O {[%clk 0:02:41]} 10. O-O {[%clk 0:02:54]}  Nc6 {[%clk 0:02:41]} 11. Be3 {[%clk 0:02:50]}  Bg4 {[%clk 0:02:38]} 12. h3 {[%clk 0:02:48]}  Bf5 {[%clk 0:02:37]} 13. d5 {[%clk 0:02:43]}  Na5 {[%clk 0:02:36]} 14. Bc2 {[%clk 0:02:43]}  Bxc2 {[%clk 0:02:33]} 15. Qxc2 {[%clk 0:02:41]}  Nac4 {[%clk 0:00:24]} 16. Bg5 {[%clk 0:02:24]}  Rc8 {[%clk 0:00:23]} 17. d6 {[%clk 0:01:22]}  Nxd6 {[%clk 0:00:20]} 18. Rad1 {[%clk 0:01:18]}  Nbc4 {[%clk 0:00:19]} 19. Rfe1 {[%clk 0:01:12]}  Nxb2 {[%clk 0:00:18]} 20. Bxe7 {[%clk 0:01:10]}  Nxd1 {[%clk 0:00:16]} 21. Bxd8 {[%clk 0:01:07]}  Rxc3 {[%clk 0:00:14]} 22. Qxd1 {[%clk 0:01:05]}  Rxd8 {[%clk 0:00:15]} 23. Ne5 {[%clk 0:00:48]}  h6 {[%clk 0:00:14]} 24. Qd5 {[%clk 0:00:44]}  Rc7 {[%clk 0:00:13]} 25. Rd1 {[%clk 0:00:41]}  Kh7 {[%clk 0:00:11]} 26. Ng4 {[%clk 0:00:30]}  Rcd7 {[%clk 0:00:10]} 27. Qb3 {[%clk 0:00:29]}  h5 {[%clk 0:00:09]} 28. Ne3 {[%clk 0:00:28]}  b6 {[%clk 0:00:09]} 29. g3 {[%clk 0:00:21]}  Nb7 {[%clk 0:00:09]} 30. Rxd7 {[%clk 0:00:20]}  Rxd7 {[%clk 0:00:10]} 31. Kg2 {[%clk 0:00:19]}  Nc5 {[%clk 0:00:10]} 32. Qc2 {[%clk 0:00:17]}  Re7 {[%clk 0:00:11]} 33. Qc4 {[%clk 0:00:14]}  Rd7 {[%clk 0:00:11]} 34. Nd5 {[%clk 0:00:13]}  Rd6 {[%clk 0:00:11]} 35. Ne7 {[%clk 0:00:10]}  Rd7 {[%clk 0:00:11]} 36. Qxf7 {[%clk 0:00:09]}  Rd6 {[%clk 0:00:09]} 37. Qg8+ {[%clk 0:00:06]}  Kh6 {[%clk 0:00:08]} 38. Qf7 {[%clk 0:00:07]}  Rf6 {[%clk 0:00:08]} 39. Qd5 {[%clk 0:00:04]}  Re6 {[%clk 0:00:09]} 40. Nc6 {[%clk 0:00:01]}  Rf6 {[%clk 0:00:08]} 0-1


[Site "https://www.chess.com"]

[Event "Titled Tuesday Blitz October 11 Early 2022"]
[White "Yuan, Qingyu"]
[Black "Guerrero Olmos, Sergio"]
[WhiteFideId "8609772"]
[BlackFideId "2257238"]
[WhiteElo "2359"]
[BlackElo "2272"]
[Result "0-1"]
[Round "02"]
[TimeControl "180+1"]
[Date "2022.10.12"]
[WhiteClock "0:00:14"]
[BlackClock "0:00:34"]

1. d4 {[%clk 0:03:00]}  d5 {[%clk 0:02:59]} 2. Bf4 {[%clk 0:03:01]}  c5 {[%clk 0:02:58]} 3. c3 {[%clk 0:03:00]}  Nf6 {[%clk 0:02:59]} 4. Nf3 {[%clk 0:03:00]}  Nc6 {[%clk 0:02:59]} 5. Nbd2 {[%clk 0:03:00]}  e6 {[%clk 0:02:58]} 6. e3 {[%clk 0:03:00]}  Bd6 {[%clk 0:02:58]} 7. Bg3 {[%clk 0:02:53]}  O-O {[%clk 0:02:58]} 8. Bd3 {[%clk 0:02:53]}  b6 {[%clk 0:02:55]} 9. Qe2 {[%clk 0:02:52]}  Bb7 {[%clk 0:02:54]} 10. e4 {[%clk 0:02:49]}  dxe4 {[%clk 0:02:52]} 11. Nxe4 {[%clk 0:02:45]}  Be7 {[%clk 0:02:48]} 12. dxc5 {[%clk 0:02:38]}  bxc5 {[%clk 0:02:48]} 13. Rd1 {[%clk 0:02:25]}  Qb6 {[%clk 0:02:45]} 14. Bh4 {[%clk 0:02:18]}  c4 {[%clk 0:02:36]} 15. Bb1 {[%clk 0:01:52]}  Nxe4 {[%clk 0:02:30]} 16. Bxe4 {[%clk 0:01:29]}  Bxh4 {[%clk 0:02:25]} 17. Nxh4 {[%clk 0:01:29]}  Ne5 {[%clk 0:02:08]} 18. Bxb7 {[%clk 0:01:12]}  Nd3+ {[%clk 0:02:07]} 19. Rxd3 {[%clk 0:01:10]}  cxd3 {[%clk 0:02:07]} 20. Qf3 {[%clk 0:01:08]}  d2+ {[%clk 0:02:01]} 21. Kxd2 {[%clk 0:00:51]}  Qxb2+ {[%clk 0:01:58]} 22. Ke3 {[%clk 0:00:51]}  Rab8 {[%clk 0:01:26]} 23. Be4 {[%clk 0:00:40]}  f5 {[%clk 0:01:11]} 24. Bd3 {[%clk 0:00:39]}  f4+ {[%clk 0:00:59]} 25. Ke4 {[%clk 0:00:40]}  Qxc3 {[%clk 0:00:57]} 26. Qd1 {[%clk 0:00:26]}  Qc6+ {[%clk 0:00:53]} 27. Kd4 {[%clk 0:00:25]}  Rfd8+ {[%clk 0:00:51]} 28. Ke5 {[%clk 0:00:24]}  g5 {[%clk 0:00:41]} 29. Bxh7+ {[%clk 0:00:22]}  Kg7 {[%clk 0:00:38]} 30. Be4 {[%clk 0:00:15]}  Rb5+ {[%clk 0:00:35]} 31. Bd5 {[%clk 0:00:14]}  Rbxd5+ {[%clk 0:00:34]} 32. Ke4 {[%clk 0:00:14]}  Rxd1+ {[%clk 0:00:34]} 0-1


[Site "https://www.chess.com"]

[Event "Titled Tuesday Blitz October 11 Early 2022"]
[White "Aggelis, Nikolaos"]
[Black "Ardila, Oscar Humberto"]
[WhiteFideId "4213220"]
[BlackFideId "4404742"]
[WhiteElo "2187"]
[BlackElo "1898"]
[Result "1-0"]
[Round "03"]
[TimeControl "180+1"]
[Date "2022.10.12"]
[WhiteClock "0:01:46"]
[BlackClock "0:00:05"]

1. Nf3 {[%clk 0:02:40]}  Nf6 {[%clk 0:02:57]} 2. g3 {[%clk 0:02:40]}  g6 {[%clk 0:02:57]} 3. Bg2 {[%clk 0:02:41]}  Bg7 {[%clk 0:02:57]} 4. O-O {[%clk 0:02:42]}  O-O {[%clk 0:02:58]} 5. d4 {[%clk 0:02:43]}  d6 {[%clk 0:02:58]} 6. b3 {[%clk 0:02:43]}  Nbd7 {[%clk 0:02:58]} 7. Bb2 {[%clk 0:02:43]}  c6 {[%clk 0:02:58]} 8. Nbd2 {[%clk 0:02:42]}  Qc7 {[%clk 0:02:58]} 9. e4 {[%clk 0:02:42]}  b6 {[%clk 0:02:26]} 10. Re1 {[%clk 0:02:27]}  Ba6 {[%clk 0:02:14]} 11. Qc1 {[%clk 0:02:16]}  e5 {[%clk 0:02:12]} 12. dxe5 {[%clk 0:02:11]}  Nxe5 {[%clk 0:02:12]} 13. Nxe5 {[%clk 0:02:11]}  dxe5 {[%clk 0:02:12]} 14. Bf1 {[%clk 0:02:11]}  Bxf1 {[%clk 0:02:06]} 15. Kxf1 {[%clk 0:02:12]}  Bh6 {[%clk 0:02:00]} 16. Bc3 {[%clk 0:02:08]}  Rad8 {[%clk 0:01:57]} 17. Re2 {[%clk 0:02:08]}  Qd7 {[%clk 0:01:57]} 18. Qe1 {[%clk 0:02:07]}  Qh3+ {[%clk 0:01:56]} 19. Kg1 {[%clk 0:02:07]}  Ng4 {[%clk 0:01:56]} 20. Nf1 {[%clk 0:02:07]}  f5 {[%clk 0:01:25]} 21. f3 {[%clk 0:02:03]}  Nf6 {[%clk 0:00:46]} 22. exf5 {[%clk 0:01:59]}  Nd5 {[%clk 0:00:42]} 23. Bxe5 {[%clk 0:01:58]}  Rxf5 {[%clk 0:00:42]} 24. f4 {[%clk 0:01:58]}  Rh5 {[%clk 0:00:30]} 25. c4 {[%clk 0:01:54]}  Ne7 {[%clk 0:00:13]} 26. Bf6 {[%clk 0:01:54]}  Bg7 {[%clk 0:00:05]} 27. Bxg7 {[%clk 0:01:51]}  Kxg7 {[%clk 0:00:04]} 28. Rxe7+ {[%clk 0:01:51]}  Kh6 {[%clk 0:00:05]} 29. Qc3 {[%clk 0:01:46]} 1-0


[Site "https://www.chess.com"]

[Event "Titled Tuesday Blitz October 11 Early 2022"]
[White "Aldokhin, Ivan"]
[Black "Zaksaite, Salomeja"]
[WhiteFideId "24115720"]
[BlackFideId "12801496"]
[WhiteElo "2313"]
[BlackElo "2094"]
[Result "1-0"]
[Round "03"]
[TimeControl "180+1"]
[Date "2022.10.12"]
[WhiteClock "0:01:17"]
[BlackClock "0:00:03"]

1. e4 {[%clk 0:03:00]}  c5 {[%clk 0:02:59]} 2. Nf3 {[%clk 0:03:01]}  e6 {[%clk 0:03:00]} 3. d4 {[%clk 0:03:01]}  cxd4 {[%clk 0:03:00]} 4. Nxd4 {[%clk 0:03:02]}  Nf6 {[%clk 0:03:01]} 5. Nc3 {[%clk 0:03:03]}  Nc6 {[%clk 0:03:02]} 6. Nxc6 {[%clk 0:03:02]}  bxc6 {[%clk 0:03:02]} 7. Bd3 {[%clk 0:03:03]}  d5 {[%clk 0:03:01]} 8. Bf4 {[%clk 0:03:00]}  Be7 {[%clk 0:02:51]} 9. Qe2 {[%clk 0:02:59]}  O-O {[%clk 0:02:38]} 10. O-O {[%clk 0:02:59]}  d4 {[%clk 0:02:17]} 11. Nb1 {[%clk 0:02:55]}  Nd7 {[%clk 0:01:25]} 12. e5 {[%clk 0:02:37]}  Bg5 {[%clk 0:01:22]} 13. Bg3 {[%clk 0:02:32]}  f5 {[%clk 0:01:11]} 14. exf6 {[%clk 0:02:24]}  Nxf6 {[%clk 0:01:06]} 15. Nd2 {[%clk 0:02:23]}  e5 {[%clk 0:00:39]} 16. Bxe5 {[%clk 0:02:06]}  Re8 {[%clk 0:00:10]} 17. Bxf6 {[%clk 0:01:59]}  Bxf6 {[%clk 0:00:08]} 18. Qf3 {[%clk 0:01:52]}  Be6 {[%clk 0:00:06]} 19. Qxc6 {[%clk 0:01:45]}  Kh8 {[%clk 0:00:04]} 20. Rae1 {[%clk 0:01:34]}  Bf7 {[%clk 0:00:02]} 21. Rxe8+ {[%clk 0:01:26]}  Bxe8 {[%clk 0:00:03]} 22. Qf3 {[%clk 0:01:22]}  Rb8 {[%clk 0:00:02]} 23. b3 {[%clk 0:01:21]}  Qc7 {[%clk 0:00:02]} 24. Ne4 {[%clk 0:01:19]}  Be5 {[%clk 0:00:03]} 25. Qf8# {[%clk 0:01:17]} 1-0


[Site "https://www.chess.com"]

[Event "Titled Tuesday Blitz October 11 Early 2022"]
[White "Aliaga Fernandez, Ingrid Y"]
[Black "Manukian, Artak"]
[WhiteFideId "3802191"]
[BlackFideId "13301373"]
[WhiteElo "2135"]
[BlackElo "2494"]
[Result "0-1"]
[Round "03"]
[TimeControl "180+1"]
[Date "2022.10.12"]
[WhiteClock "0:00:07"]
[BlackClock "0:00:22"]

1. e4 {[%clk 0:02:57]}  c6 {[%clk 0:02:59]} 2. d4 {[%clk 0:02:56]}  d5 {[%clk 0:03:00]} 3. Nc3 {[%clk 0:02:56]}  dxe4 {[%clk 0:02:59]} 4. Nxe4 {[%clk 0:02:56]}  Nf6 {[%clk 0:02:59]} 5. Nxf6+ {[%clk 0:02:52]}  exf6 {[%clk 0:03:00]} 6. Nf3 {[%clk 0:02:50]}  Bd6 {[%clk 0:02:59]} 7. Bd3 {[%clk 0:02:47]}  O-O {[%clk 0:02:58]} 8. c3 {[%clk 0:02:46]}  Re8+ {[%clk 0:02:56]} 9. Be3 {[%clk 0:02:44]}  Bf4 {[%clk 0:02:56]} 10. Qd2 {[%clk 0:02:44]}  Qe7 {[%clk 0:02:55]} 11. Qc2 {[%clk 0:02:27]}  Bxe3 {[%clk 0:02:54]} 12. Bxh7+ {[%clk 0:02:25]}  Kh8 {[%clk 0:02:50]} 13. fxe3 {[%clk 0:02:26]}  Qxe3+ {[%clk 0:02:50]} 14. Kf1 {[%clk 0:02:22]}  Be6 {[%clk 0:02:14]} 15. Bd3 {[%clk 0:02:17]}  Nd7 {[%clk 0:02:11]} 16. Re1 {[%clk 0:02:15]}  Qh6 {[%clk 0:02:00]} 17. Re4 {[%clk 0:01:55]}  g5 {[%clk 0:01:42]} 18. Qf2 {[%clk 0:00:59]}  Bd5 {[%clk 0:01:36]} 19. Rxe8+ {[%clk 0:00:54]}  Rxe8 {[%clk 0:01:37]} 20. c4 {[%clk 0:00:51]}  Bxf3 {[%clk 0:01:28]} 21. Qxf3 {[%clk 0:00:52]}  Kg7 {[%clk 0:01:23]} 22. g3 {[%clk 0:00:37]}  Qh3+ {[%clk 0:01:16]} 23. Kf2 {[%clk 0:00:35]}  Nf8 {[%clk 0:00:57]} 24. Bf5 {[%clk 0:00:25]}  Qh6 {[%clk 0:00:54]} 25. h4 {[%clk 0:00:25]}  gxh4 {[%clk 0:00:49]} 26. Qg4+ {[%clk 0:00:16]}  Qg5 {[%clk 0:00:49]} 27. Rxh4 {[%clk 0:00:13]}  Qxg4 {[%clk 0:00:43]} 28. Rxg4+ {[%clk 0:00:13]}  Ng6 {[%clk 0:00:44]} 29. Re4 {[%clk 0:00:12]}  Rxe4 {[%clk 0:00:40]} 30. Bxe4 {[%clk 0:00:13]}  Ne7 {[%clk 0:00:40]} 31. Kf3 {[%clk 0:00:13]}  f5 {[%clk 0:00:40]} 32. Bd3 {[%clk 0:00:13]}  Kf6 {[%clk 0:00:40]} 33. Bf1 {[%clk 0:00:14]}  b6 {[%clk 0:00:38]} 34. b3 {[%clk 0:00:14]}  Ng6 {[%clk 0:00:37]} 35. Bd3 {[%clk 0:00:13]}  c5 {[%clk 0:00:37]} 36. dxc5 {[%clk 0:00:12]}  bxc5 {[%clk 0:00:37]} 37. a3 {[%clk 0:00:13]}  a5 {[%clk 0:00:37]} 38. Bc2 {[%clk 0:00:10]}  Ke5 {[%clk 0:00:35]} 39. g4 {[%clk 0:00:07]}  fxg4+ {[%clk 0:00:35]} 40. Kxg4 {[%clk 0:00:08]}  Ne7 {[%clk 0:00:34]} 41. Kf3 {[%clk 0:00:08]}  Nc6 {[%clk 0:00:33]} 42. Bd1 {[%clk 0:00:07]}  Nd4+ {[%clk 0:00:33]} 43. Ke3 {[%clk 0:00:07]}  f5 {[%clk 0:00:32]} 44. Kd3 {[%clk 0:00:08]}  f4 {[%clk 0:00:32]} 45. Kc3 {[%clk 0:00:07]}  f3 {[%clk 0:00:31]} 46. Bxf3 {[%clk 0:00:07]}  Nxf3 {[%clk 0:00:31]} 47. b4 {[%clk 0:00:08]}  Kd6 {[%clk 0:00:28]} 48. bxa5 {[%clk 0:00:05]}  Kc6 {[%clk 0:00:27]} 49. a6 {[%clk 0:00:04]}  Kb6 {[%clk 0:00:27]} 50. a7 {[%clk 0:00:05]}  Kxa7 {[%clk 0:00:27]} 51. Kd3 {[%clk 0:00:06]}  Kb6 {[%clk 0:00:25]} 52. Ke4 {[%clk 0:00:07]}  Nd4 {[%clk 0:00:22]} 53. Kd5 {[%clk 0:00:07]}  Nb3 {[%clk 0:00:22]} 54. a4 {[%clk 0:00:07]}  Na5 {[%clk 0:00:22]} 55. Ke4 {[%clk 0:00:07]}  Nxc4 {[%clk 0:00:22]} 0-1


[Site "https://www.chess.com"]

[Event "Titled Tuesday Blitz October 11 Early 2022"]
[White "Araujo Sanchez, Josue"]
[Black "Pourkashiyan, Atousa"]
[WhiteFideId "6416896"]
[BlackFideId "12502014"]
[WhiteElo "2370"]
[BlackElo "2247"]
[Result "1-0"]
[Round "03"]
[TimeControl "180+1"]
[Date "2022.10.12"]
[WhiteClock "0:01:04"]
[BlackClock "0:00:04"]

1. e4 {[%clk 0:03:00]}  e5 {[%clk 0:02:54]} 2. Nf3 {[%clk 0:02:59]}  Nc6 {[%clk 0:02:53]} 3. Bc4 {[%clk 0:02:59]}  Bc5 {[%clk 0:02:53]} 4. d3 {[%clk 0:02:58]}  Nf6 {[%clk 0:02:52]} 5. O-O {[%clk 0:02:57]}  O-O {[%clk 0:02:50]} 6. a4 {[%clk 0:02:57]}  d6 {[%clk 0:02:49]} 7. c3 {[%clk 0:02:57]}  h6 {[%clk 0:02:48]} 8. b4 {[%clk 0:02:56]}  Nxb4 {[%clk 0:02:39]} 9. cxb4 {[%clk 0:02:56]}  Bxb4 {[%clk 0:02:40]} 10. a5 {[%clk 0:02:56]}  Bg4 {[%clk 0:02:38]} 11. h3 {[%clk 0:02:55]}  Bh5 {[%clk 0:02:38]} 12. a6 {[%clk 0:02:54]}  bxa6 {[%clk 0:02:32]} 13. Rxa6 {[%clk 0:02:52]}  Nd7 {[%clk 0:02:27]} 14. Bd2 {[%clk 0:02:51]}  Bc5 {[%clk 0:02:22]} 15. Be3 {[%clk 0:02:49]}  Kh8 {[%clk 0:02:13]} 16. g4 {[%clk 0:02:44]}  Bg6 {[%clk 0:02:13]} 17. Nbd2 {[%clk 0:02:43]}  Bb6 {[%clk 0:01:40]} 18. Re1 {[%clk 0:02:02]}  Nc5 {[%clk 0:01:30]} 19. Ra1 {[%clk 0:02:00]}  Ne6 {[%clk 0:01:29]} 20. Nf1 {[%clk 0:02:00]}  a5 {[%clk 0:01:19]} 21. Ng3 {[%clk 0:01:59]}  Bxe3 {[%clk 0:00:42]} 22. fxe3 {[%clk 0:01:58]}  c6 {[%clk 0:00:42]} 23. Ba2 {[%clk 0:01:54]}  Nc5 {[%clk 0:00:35]} 24. Rf1 {[%clk 0:01:48]}  a4 {[%clk 0:00:33]} 25. h4 {[%clk 0:01:47]}  a3 {[%clk 0:00:31]} 26. h5 {[%clk 0:01:46]}  Bh7 {[%clk 0:00:30]} 27. Kg2 {[%clk 0:01:45]}  Rb8 {[%clk 0:00:26]} 28. Rf2 {[%clk 0:01:44]}  Rb2 {[%clk 0:00:25]} 29. Rxb2 {[%clk 0:01:40]}  axb2 {[%clk 0:00:25]} 30. Rb1 {[%clk 0:01:41]}  Qb6 {[%clk 0:00:23]} 31. Qc2 {[%clk 0:01:38]}  Rb8 {[%clk 0:00:20]} 32. Bxf7 {[%clk 0:01:36]}  Qb4 {[%clk 0:00:14]} 33. g5 {[%clk 0:01:31]}  Na4 {[%clk 0:00:11]} 34. Ne2 {[%clk 0:01:23]}  Bg8 {[%clk 0:00:09]} 35. Bxg8 {[%clk 0:01:22]}  Kxg8 {[%clk 0:00:09]} 36. g6 {[%clk 0:01:18]}  Kh8 {[%clk 0:00:08]} 37. Qxc6 {[%clk 0:01:15]}  Qb3 {[%clk 0:00:08]} 38. Qc4 {[%clk 0:01:10]}  Qxc4 {[%clk 0:00:05]} 39. dxc4 {[%clk 0:01:11]}  Nc5 {[%clk 0:00:05]} 40. Nd2 {[%clk 0:01:09]}  Nd3 {[%clk 0:00:04]} 41. Nc3 {[%clk 0:01:05]}  Ra8 {[%clk 0:00:04]} 42. Kf3 {[%clk 0:01:05]}  Ra1 {[%clk 0:00:04]} 43. Ke2 {[%clk 0:01:05]}  Nc5 {[%clk 0:00:04]} 44. Rxb2 {[%clk 0:01:04]} 1-0


[Site "https://www.chess.com"]

[Event "Titled Tuesday Blitz October 11 Early 2022"]
[White "Azadaliyev, Jahandar"]
[Black "Sohier, Julien"]
[WhiteFideId "13425811"]
[BlackFideId "645346"]
[WhiteElo "2204"]
[BlackElo "2209"]
[Result "1-0"]
[Round "03"]
[TimeControl "180+1"]
[Date "2022.10.12"]
[WhiteClock "0:00:22"]
[BlackClock "0:00:08"]

1. e4 {[%clk 0:03:00]}  e5 {[%clk 0:02:59]} 2. Nf3 {[%clk 0:03:00]}  Nc6 {[%clk 0:02:59]} 3. Nc3 {[%clk 0:03:00]}  Nf6 {[%clk 0:02:59]} 4. a3 {[%clk 0:03:00]}  d5 {[%clk 0:02:57]} 5. Bb5 {[%clk 0:03:00]}  Nxe4 {[%clk 0:02:57]} 6. Qe2 {[%clk 0:03:01]}  Nxc3 {[%clk 0:02:46]} 7. Qxe5+ {[%clk 0:02:58]}  Qe7 {[%clk 0:02:42]} 8. dxc3 {[%clk 0:02:55]}  Bd7 {[%clk 0:02:26]} 9. Bxc6 {[%clk 0:02:44]}  Bxc6 {[%clk 0:02:20]} 10. O-O {[%clk 0:02:43]}  Qxe5 {[%clk 0:02:16]} 11. Nxe5 {[%clk 0:02:42]}  Bd6 {[%clk 0:02:05]} 12. Bf4 {[%clk 0:02:28]}  f6 {[%clk 0:01:44]} 13. Nxc6 {[%clk 0:01:57]}  Bxf4 {[%clk 0:01:26]} 14. Rfe1+ {[%clk 0:01:55]}  Kd7 {[%clk 0:01:24]} 15. Nd4 {[%clk 0:01:31]}  Rae8 {[%clk 0:01:23]} 16. g3 {[%clk 0:01:29]}  Bd6 {[%clk 0:01:12]} 17. Kg2 {[%clk 0:01:23]}  c6 {[%clk 0:01:06]} 18. Rad1 {[%clk 0:01:16]}  g6 {[%clk 0:01:04]} 19. Nf3 {[%clk 0:01:13]}  Rxe1 {[%clk 0:01:01]} 20. Nxe1 {[%clk 0:01:14]}  Re8 {[%clk 0:00:59]} 21. Kf3 {[%clk 0:01:12]}  Re4 {[%clk 0:00:53]} 22. Nd3 {[%clk 0:01:10]}  h5 {[%clk 0:00:47]} 23. b3 {[%clk 0:00:56]}  a6 {[%clk 0:00:40]} 24. c4 {[%clk 0:00:52]}  Bxa3 {[%clk 0:00:21]} 25. cxd5 {[%clk 0:00:50]}  cxd5 {[%clk 0:00:22]} 26. Nf4 {[%clk 0:00:50]}  Re8 {[%clk 0:00:13]} 27. Rxd5+ {[%clk 0:00:50]}  Kc6 {[%clk 0:00:13]} 28. Rd3 {[%clk 0:00:48]}  Bc5 {[%clk 0:00:12]} 29. Nxg6 {[%clk 0:00:48]}  Re1 {[%clk 0:00:12]} 30. Nf4 {[%clk 0:00:42]}  Rf1 {[%clk 0:00:12]} 31. Rd2 {[%clk 0:00:42]}  Rh1 {[%clk 0:00:12]} 32. Kg2 {[%clk 0:00:42]}  Rc1 {[%clk 0:00:10]} 33. Nxh5 {[%clk 0:00:42]}  Be7 {[%clk 0:00:09]} 34. Ng7 {[%clk 0:00:41]}  a5 {[%clk 0:00:08]} 35. Nf5 {[%clk 0:00:41]}  Bf8 {[%clk 0:00:08]} 36. c4 {[%clk 0:00:38]}  b5 {[%clk 0:00:07]} 37. Rd8 {[%clk 0:00:37]}  Bc5 {[%clk 0:00:07]} 38. Rc8+ {[%clk 0:00:37]}  Kb6 {[%clk 0:00:06]} 39. cxb5 {[%clk 0:00:35]}  Kxb5 {[%clk 0:00:07]} 40. Nd4+ {[%clk 0:00:28]}  Kb4 {[%clk 0:00:06]} 41. Ne6 {[%clk 0:00:28]}  Rc2 {[%clk 0:00:03]} 42. Nxc5 {[%clk 0:00:19]}  Rxc5 {[%clk 0:00:04]} 43. Rxc5 {[%clk 0:00:18]}  Kxc5 {[%clk 0:00:05]} 44. h4 {[%clk 0:00:18]}  Kb4 {[%clk 0:00:04]} 45. h5 {[%clk 0:00:19]}  Kxb3 {[%clk 0:00:05]} 46. h6 {[%clk 0:00:20]}  a4 {[%clk 0:00:06]} 47. h7 {[%clk 0:00:21]}  a3 {[%clk 0:00:07]} 48. h8=Q {[%clk 0:00:21]}  a2 {[%clk 0:00:08]} 49. Qxf6 {[%clk 0:00:22]} 1-0


[Site "https://www.chess.com"]

[Event "Titled Tuesday Blitz October 11 Early 2022"]
[White "Azarov, Sergei"]
[Black "Katz, Alexander"]
[WhiteFideId "13501470"]
[BlackFideId "2039796"]
[WhiteElo "2494"]
[BlackElo "2388"]
[Result "0-1"]
[Round "03"]
[TimeControl "180+1"]
[Date "2022.10.12"]
[WhiteClock "0:00:01"]
[BlackClock "0:00:15"]

1. e4 {[%clk 0:03:00]}  c5 {[%clk 0:02:58]} 2. Nf3 {[%clk 0:03:01]}  e6 {[%clk 0:02:58]} 3. d4 {[%clk 0:03:01]}  cxd4 {[%clk 0:02:59]} 4. Nxd4 {[%clk 0:03:01]}  Nc6 {[%clk 0:03:00]} 5. Nc3 {[%clk 0:03:01]}  Qc7 {[%clk 0:03:00]} 6. Be2 {[%clk 0:03:00]}  a6 {[%clk 0:03:00]} 7. O-O {[%clk 0:03:00]}  Nf6 {[%clk 0:03:01]} 8. Be3 {[%clk 0:02:59]}  b5 {[%clk 0:03:00]} 9. Nxc6 {[%clk 0:02:56]}  Qxc6 {[%clk 0:03:00]} 10. e5 {[%clk 0:02:52]}  Nd5 {[%clk 0:02:51]} 11. Nxd5 {[%clk 0:02:48]}  exd5 {[%clk 0:02:50]} 12. Bf3 {[%clk 0:02:46]}  Bb7 {[%clk 0:02:51]} 13. Qd2 {[%clk 0:02:36]}  Rc8 {[%clk 0:02:51]} 14. c3 {[%clk 0:02:35]}  d6 {[%clk 0:02:38]} 15. Bf4 {[%clk 0:02:18]}  dxe5 {[%clk 0:02:27]} 16. Bxe5 {[%clk 0:02:18]}  f6 {[%clk 0:02:27]} 17. Bg3 {[%clk 0:02:14]}  Bd6 {[%clk 0:02:23]} 18. Qe3+ {[%clk 0:01:14]}  Kf7 {[%clk 0:02:14]} 19. Rad1 {[%clk 0:01:14]}  Rhe8 {[%clk 0:01:59]} 20. Bh5+ {[%clk 0:00:51]}  g6 {[%clk 0:01:57]} 21. Qh6 {[%clk 0:00:52]}  gxh5 {[%clk 0:01:24]} 22. Qxh7+ {[%clk 0:00:50]}  Ke6 {[%clk 0:01:17]} 23. Rfe1+ {[%clk 0:00:39]}  Be5 {[%clk 0:01:17]} 24. f4 {[%clk 0:00:20]}  d4 {[%clk 0:01:12]} 25. Re2 {[%clk 0:00:20]}  Rh8 {[%clk 0:01:02]} 26. Qg6 {[%clk 0:00:18]}  Rcg8 {[%clk 0:00:27]} 27. Rxe5+ {[%clk 0:00:17]}  Kd7 {[%clk 0:00:28]} 28. Qf5+ {[%clk 0:00:17]}  Kc7 {[%clk 0:00:29]} 29. Rc5 {[%clk 0:00:17]}  h4 {[%clk 0:00:28]} 30. Rxc6+ {[%clk 0:00:15]}  Bxc6 {[%clk 0:00:29]} 31. Bf2 {[%clk 0:00:09]}  Rxg2+ {[%clk 0:00:28]} 32. Kf1 {[%clk 0:00:08]}  Rxh2 {[%clk 0:00:27]} 33. Rxd4 {[%clk 0:00:05]}  Re8 {[%clk 0:00:17]} 34. Qxf6 {[%clk 0:00:02]}  h3 {[%clk 0:00:15]} 35. Rd6 {[%clk 0:00:01]}  Bg2+ {[%clk 0:00:15]} 0-1


[Site "https://www.chess.com"]